[Event "Early-Titled-Tuesday-Blitz-February-06-2024"]
[Site "Chess.com"]
[Date "2024.02.06"]
[Round "2"]
[White "CristianS27"]
[Black "GelmanAlexander"]
[Result "1-0"]
[WhiteElo "2576"]
[BlackElo "2782"]
[TimeControl "180+1"]
[EndTime "8:16:21 PST"]
[Termination "CristianS27 won by resignation"]

1. e4 {[%clk 0:02:26.7]} 1... c5 {[%clk 0:02:59.5]} 2. Nf3 {[%clk 0:02:25.7]}
2... e6 {[%clk 0:02:59.7]} 3. d4 {[%clk 0:02:26.4]} 3... cxd4 {[%clk 0:02:59.6]}
4. Nxd4 {[%clk 0:02:27.3]} 4... a6 {[%clk 0:02:59.7]} 5. Be2 {[%clk 0:02:27.7]}
5... d6 {[%clk 0:03:00.1]} 6. O-O {[%clk 0:02:28]} 6... Nf6 {[%clk 0:03:00.5]}
7. Nc3 {[%clk 0:02:28]} 7... Nbd7 {[%clk 0:02:59.7]} 8. a4 {[%clk 0:02:26.7]}
8... b6 {[%clk 0:02:59.3]} 9. f4 {[%clk 0:02:26.3]} 9... Bb7 {[%clk 0:02:59.8]}
10. Bf3 {[%clk 0:02:26.9]} 10... Qc7 {[%clk 0:02:58.1]} 11. Qe2 {[%clk 0:02:27]}
11... Be7 {[%clk 0:02:56.6]} 12. Bd2 {[%clk 0:02:26.6]} 12... O-O {[%clk
0:02:53.4]} 13. Rae1 {[%clk 0:02:27.1]} 13... Rac8 {[%clk 0:02:48.7]} 14. Kh1
{[%clk 0:02:27.2]} 14... Qc4 {[%clk 0:02:41.7]} 15. Qf2 {[%clk 0:02:21.5]} 15...
Ba8 {[%clk 0:02:22.8]} 16. Be2 {[%clk 0:02:16.8]} 16... Qc5 {[%clk 0:02:09.7]}
17. Bxa6 {[%clk 0:02:15.4]} 17... Rcd8 {[%clk 0:02:07.4]} 18. Bd3 {[%clk
0:02:11.8]} 18... g6 {[%clk 0:01:53.4]} 19. Ndb5 {[%clk 0:01:58.3]} 19... d5
{[%clk 0:01:40.9]} 20. e5 {[%clk 0:01:50.5]} 20... Ne4 {[%clk 0:01:20]} 21. Qxc5
{[%clk 0:01:31.6]} 21... Ndxc5 {[%clk 0:01:19.6]} 22. Bxe4 {[%clk 0:01:18.3]}
22... Nxe4 {[%clk 0:01:10.6]} 23. Nxe4 {[%clk 0:01:18]} 23... dxe4 {[%clk
0:01:11.5]} 24. Be3 {[%clk 0:01:18.7]} 24... Bc6 {[%clk 0:01:00.9]} 25. Rd1
{[%clk 0:01:07]} 25... Ra8 {[%clk 0:00:54.1]} 26. b3 {[%clk 0:01:02.9]} 26...
Bxb5 {[%clk 0:00:52.7]} 27. axb5 {[%clk 0:01:03.8]} 27... Ra2 {[%clk 0:00:53.2]}
28. Bxb6 {[%clk 0:00:53.2]} 28... Rxc2 {[%clk 0:00:52.5]} 29. Ba7 {[%clk
0:00:53.8]} 29... Rb2 {[%clk 0:00:50.8]} 30. Rb1 {[%clk 0:00:53.9]} 30... Rxb1
{[%clk 0:00:46.1]} 31. Rxb1 {[%clk 0:00:54.8]} 31... Ra8 {[%clk 0:00:38.1]} 32.
b6 {[%clk 0:00:54.6]} 32... Bc5 {[%clk 0:00:34.2]} 33. b7 {[%clk 0:00:47.8]} 1-0

[Event "Early-Titled-Tuesday-Blitz-February-06-2024"]
[Site "Chess.com"]
[Date "2024.02.06"]
[Round "2"]
[White "bteillet"]
[Black "Raud100"]
[Result "0-1"]
[WhiteElo "2150"]
[BlackElo "2439"]
[TimeControl "180+1"]
[EndTime "8:16:21 PST"]
[Termination "Raud100 won by checkmate"]

1. b4 {[%clk 0:03:00.9]} 1... e5 {[%clk 0:02:59.4]} 2. Bb2 {[%clk 0:03:00.6]}
2... d6 {[%clk 0:02:59]} 3. c4 {[%clk 0:02:58.9]} 3... f5 {[%clk 0:02:58.2]} 4.
e3 {[%clk 0:02:59.2]} 4... Nf6 {[%clk 0:02:57.9]} 5. Nf3 {[%clk 0:02:59.8]} 5...
Be7 {[%clk 0:02:55.8]} 6. Be2 {[%clk 0:02:59.9]} 6... O-O {[%clk 0:02:52.4]} 7.
O-O {[%clk 0:03:00.5]} 7... b6 {[%clk 0:02:46.9]} 8. d3 {[%clk 0:02:54.6]} 8...
a5 {[%clk 0:02:46]} 9. b5 {[%clk 0:02:54.1]} 9... Bb7 {[%clk 0:02:44.8]} 10. a4
{[%clk 0:02:53.9]} 10... Nbd7 {[%clk 0:02:44.3]} 11. Nbd2 {[%clk 0:02:53.8]}
11... Nc5 {[%clk 0:02:43.5]} 12. Qc2 {[%clk 0:02:53.3]} 12... e4 {[%clk
0:02:31.7]} 13. dxe4 {[%clk 0:02:49.1]} 13... fxe4 {[%clk 0:02:24.4]} 14. Ng5
{[%clk 0:02:38.8]} 14... h6 {[%clk 0:02:20.1]} 15. Nh3 {[%clk 0:02:38.3]} 15...
g5 {[%clk 0:02:19.5]} 16. Rad1 {[%clk 0:02:32.1]} 16... Bc8 {[%clk 0:02:11]} 17.
Nb3 {[%clk 0:02:24.7]} 17... Nxa4 {[%clk 0:02:06.3]} 18. Nd4 {[%clk 0:02:23]}
18... Nxb2 {[%clk 0:02:03.7]} 19. Nc6 {[%clk 0:02:22]} 19... Qe8 {[%clk
0:01:55.5]} 20. Qxb2 {[%clk 0:02:19.5]} 20... Bd7 {[%clk 0:01:48.9]} 21. Nxe7+
{[%clk 0:02:13.4]} 21... Qxe7 {[%clk 0:01:49.8]} 22. Kh1 {[%clk 0:02:09.8]}
22... Bxh3 {[%clk 0:01:42.8]} 23. gxh3 {[%clk 0:02:09.8]} 23... Rae8 {[%clk
0:01:42.7]} 24. Rg1 {[%clk 0:02:03.6]} 24... Kh7 {[%clk 0:01:41.7]} 25. Rg3
{[%clk 0:02:02.2]} 25... Qe5 {[%clk 0:01:41.6]} 26. Qc2 {[%clk 0:01:59.4]} 26...
Nd7 {[%clk 0:01:34.7]} 27. Rdg1 {[%clk 0:01:55]} 27... Rxf2 {[%clk 0:01:31.4]}
28. Qd1 {[%clk 0:01:49.1]} 28... Qb2 {[%clk 0:01:22.1]} 29. R1g2 {[%clk
0:01:44.1]} 29... Ref8 {[%clk 0:01:21.7]} 30. Rxf2 {[%clk 0:01:42]} 30... Rxf2
{[%clk 0:01:22.6]} 31. Rg2 {[%clk 0:01:42.4]} 31... Rxg2 {[%clk 0:01:20.7]} 32.
Kxg2 {[%clk 0:01:43.2]} 32... Ne5 {[%clk 0:01:21.1]} 33. Kg3 {[%clk 0:01:42.1]}
33... a4 {[%clk 0:01:14.5]} 34. Bh5 {[%clk 0:01:41.8]} 34... Qb3 {[%clk
0:01:08.6]} 35. Qd2 {[%clk 0:01:27.4]} 35... Qxc4 {[%clk 0:01:03.4]} 36. Qf2
{[%clk 0:01:21.8]} 36... Kg7 {[%clk 0:01:00.6]} 37. h4 {[%clk 0:01:13.3]} 37...
Qe6 {[%clk 0:00:57.7]} 38. hxg5 {[%clk 0:01:11.8]} 38... hxg5 {[%clk 0:00:58.6]}
39. h3 {[%clk 0:01:11.3]} 39... a3 {[%clk 0:00:57.9]} 40. Qf1 {[%clk 0:01:05.8]}
40... a2 {[%clk 0:00:56.6]} 41. Qa1 {[%clk 0:01:05.7]} 41... Kh6 {[%clk
0:00:54.6]} 42. Be2 {[%clk 0:01:05.7]} 42... Qb3 {[%clk 0:00:53.6]} 43. Kf2
{[%clk 0:01:02.1]} 43... Qb1 {[%clk 0:00:51.6]} 44. Qd4 {[%clk 0:00:55.4]} 44...
a1=Q {[%clk 0:00:50.7]} 45. Qd5 {[%clk 0:00:55.1]} 45... Qg1# {[%clk 0:00:49.8]}
0-1

[Event "Early-Titled-Tuesday-Blitz-February-06-2024"]
[Site "Chess.com"]
[Date "2024.02.06"]
[Round "2"]
[White "Gabrielian_Artur"]
[Black "semchik73"]
[Result "1-0"]
[WhiteElo "2766"]
[BlackElo "2386"]
[TimeControl "180+1"]
[EndTime "8:16:22 PST"]
[Termination "Gabrielian_Artur won by resignation"]

1. e4 {[%clk 0:03:00.9]} 1... Nf6 {[%clk 0:02:59.7]} 2. e5 {[%clk 0:02:59.6]}
2... Nd5 {[%clk 0:02:59.9]} 3. d4 {[%clk 0:02:57.9]} 3... d6 {[%clk 0:02:59.9]}
4. Nf3 {[%clk 0:02:58]} 4... Bg4 {[%clk 0:02:59.8]} 5. Be2 {[%clk 0:02:57.7]}
5... c6 {[%clk 0:03:00.1]} 6. Ng5 {[%clk 0:02:28]} 6... Bxe2 {[%clk 0:02:50.1]}
7. Qxe2 {[%clk 0:02:27.8]} 7... dxe5 {[%clk 0:02:50.2]} 8. dxe5 {[%clk
0:02:26.8]} 8... e6 {[%clk 0:02:50.2]} 9. O-O {[%clk 0:02:24.4]} 9... Be7 {[%clk
0:02:47.9]} 10. Ne4 {[%clk 0:02:23.5]} 10... O-O {[%clk 0:02:46.5]} 11. c4
{[%clk 0:02:19.4]} 11... Nb4 {[%clk 0:02:41.7]} 12. Rd1 {[%clk 0:02:18.5]} 12...
Qc7 {[%clk 0:02:34.7]} 13. a3 {[%clk 0:02:14.4]} 13... N4a6 {[%clk 0:02:31.6]}
14. Bf4 {[%clk 0:02:13.7]} 14... Nd7 {[%clk 0:02:23.8]} 15. Qh5 {[%clk 0:01:59]}
15... g6 {[%clk 0:02:14.5]} 16. Qh6 {[%clk 0:01:38.5]} 16... Nxe5 {[%clk
0:02:13.9]} 17. Nbc3 {[%clk 0:01:13.9]} 17... Ng4 {[%clk 0:02:00.5]} 18. Qxf8+
{[%clk 0:01:13.2]} 18... Rxf8 {[%clk 0:01:55.8]} 19. Bxc7 {[%clk 0:01:12.9]}
19... Nxc7 {[%clk 0:01:55.9]} 20. Rd7 {[%clk 0:01:12.7]} 20... Bd8 {[%clk
0:01:47.5]} 21. Rad1 {[%clk 0:01:12.1]} 21... f5 {[%clk 0:01:34.7]} 22. Ng3
{[%clk 0:00:58.1]} 22... f4 {[%clk 0:01:20]} 23. Nge4 {[%clk 0:00:57.8]} 23...
Nd5 {[%clk 0:01:20.1]} 24. cxd5 {[%clk 0:00:56.3]} 24... exd5 {[%clk 0:01:20.6]}
25. Nc5 {[%clk 0:00:53.6]} 25... Bb6 {[%clk 0:01:20.7]} 26. b4 {[%clk
0:00:53.5]} 26... a5 {[%clk 0:01:16.1]} 27. Rxb7 {[%clk 0:00:53.2]} 27... axb4
{[%clk 0:01:15.6]} 28. axb4 {[%clk 0:00:53]} 28... Bxc5 {[%clk 0:01:11]} 29.
bxc5 {[%clk 0:00:52.8]} 29... f3 {[%clk 0:01:11.4]} 30. h3 {[%clk 0:00:50.1]}
30... Ne5 {[%clk 0:01:09.9]} 31. Re1 {[%clk 0:00:48.6]} 31... Nd3 {[%clk
0:01:06.2]} 32. Ree7 {[%clk 0:00:48.2]} 32... Ra8 {[%clk 0:01:03.8]} 33. Rg7+
{[%clk 0:00:47.9]} 33... Kf8 {[%clk 0:01:03.2]} 34. Rbf7+ {[%clk 0:00:47.3]}
34... Ke8 {[%clk 0:01:03.7]} 35. Rxf3 {[%clk 0:00:33.3]} 35... Nxc5 {[%clk
0:00:56.9]} 36. Rg8+ {[%clk 0:00:32.9]} 1-0

[Event "Early-Titled-Tuesday-Blitz-February-06-2024"]
[Site "Chess.com"]
[Date "2024.02.06"]
[Round "2"]
[White "RantomOpening"]
[Black "Sokoloco"]
[Result "0-1"]
[WhiteElo "2560"]
[BlackElo "2790"]
[TimeControl "180+1"]
[EndTime "8:16:24 PST"]
[Termination "Sokoloco won by resignation"]

1. c4 {[%clk 0:03:00]} 1... d6 {[%clk 0:02:57.2]} 2. Nf3 {[%clk 0:02:59.2]} 2...
e5 {[%clk 0:02:57.7]} 3. Nc3 {[%clk 0:02:58.1]} 3... Nc6 {[%clk 0:02:54.2]} 4.
d4 {[%clk 0:02:58.1]} 4... exd4 {[%clk 0:02:49.7]} 5. Nxd4 {[%clk 0:02:59]} 5...
g6 {[%clk 0:02:39.2]} 6. g3 {[%clk 0:02:55.9]} 6... Bg7 {[%clk 0:02:39.4]} 7.
Nxc6 {[%clk 0:02:56]} 7... bxc6 {[%clk 0:02:40.1]} 8. Bg2 {[%clk 0:02:56.2]}
8... Bd7 {[%clk 0:02:39.4]} 9. Qc2 {[%clk 0:02:56.4]} 9... Nf6 {[%clk
0:02:34.9]} 10. O-O {[%clk 0:02:56.3]} 10... O-O {[%clk 0:02:35.5]} 11. b3
{[%clk 0:02:55.9]} 11... Re8 {[%clk 0:02:21]} 12. Bb2 {[%clk 0:02:55.8]} 12...
Bf5 {[%clk 0:02:21.7]} 13. e4 {[%clk 0:02:55.1]} 13... Nxe4 {[%clk 0:02:22.1]}
14. Nxe4 {[%clk 0:02:54.7]} 14... Bxb2 {[%clk 0:02:14.7]} 15. Qxb2 {[%clk
0:02:52.1]} 15... Bxe4 {[%clk 0:02:15.4]} 16. Rfe1 {[%clk 0:02:48.1]} 16... Bxg2
{[%clk 0:02:14.5]} 17. Kxg2 {[%clk 0:02:49]} 17... Qg5 {[%clk 0:02:00.1]} 18.
Qc3 {[%clk 0:02:16.2]} 18... a5 {[%clk 0:01:52.4]} 19. Rxe8+ {[%clk 0:02:00.4]}
19... Rxe8 {[%clk 0:01:53.3]} 20. Re1 {[%clk 0:02:00.6]} 20... Rxe1 {[%clk
0:01:41.6]} 21. Qxe1 {[%clk 0:02:01.5]} 21... Qe5 {[%clk 0:01:42]} 22. Qxe5
{[%clk 0:01:37.4]} 22... dxe5 {[%clk 0:01:42]} 23. Kf3 {[%clk 0:01:37.2]} 23...
f5 {[%clk 0:01:32.8]} 24. Ke3 {[%clk 0:01:05.9]} 24... Kf7 {[%clk 0:01:13.7]}
25. Kd3 {[%clk 0:00:50.4]} 25... Ke6 {[%clk 0:01:13.5]} 26. Kc3 {[%clk
0:00:48.1]} 26... c5 {[%clk 0:00:46.1]} 27. a3 {[%clk 0:00:47.6]} 27... e4
{[%clk 0:00:44.8]} 28. b4 {[%clk 0:00:46.5]} 28... cxb4+ {[%clk 0:00:40.7]} 29.
axb4 {[%clk 0:00:47.4]} 29... axb4+ {[%clk 0:00:41.6]} 30. Kxb4 {[%clk
0:00:47.6]} 30... g5 {[%clk 0:00:37.4]} 31. Kc5 {[%clk 0:00:47.3]} 31... Ke5
{[%clk 0:00:38]} 0-1

[Event "Early-Titled-Tuesday-Blitz-February-06-2024"]
[Site "Chess.com"]
[Date "2024.02.06"]
[Round "2"]
[White "Iana_Shirova"]
[Black "MattyDPerrine"]
[Result "0-1"]
[WhiteElo "2295"]
[BlackElo "2506"]
[TimeControl "180+1"]
[EndTime "8:16:25 PST"]
[Termination "MattyDPerrine won by resignation"]

1. e4 {[%clk 0:03:00.9]} 1... c6 {[%clk 0:02:58.4]} 2. d4 {[%clk 0:02:56]} 2...
d5 {[%clk 0:02:58.5]} 3. Nc3 {[%clk 0:02:54.1]} 3... dxe4 {[%clk 0:02:57.8]} 4.
Nxe4 {[%clk 0:02:55]} 4... Bf5 {[%clk 0:02:57.9]} 5. Ng3 {[%clk 0:02:54.9]} 5...
Bg6 {[%clk 0:02:58.6]} 6. h4 {[%clk 0:02:54.5]} 6... h6 {[%clk 0:02:58.2]} 7.
Nf3 {[%clk 0:02:53.7]} 7... e6 {[%clk 0:02:52]} 8. Ne5 {[%clk 0:02:53]} 8... Bh7
{[%clk 0:02:52.4]} 9. Bc4 {[%clk 0:02:53.2]} 9... Nd7 {[%clk 0:02:47]} 10. Qe2
{[%clk 0:02:19.2]} 10... Nxe5 {[%clk 0:02:37.5]} 11. dxe5 {[%clk 0:02:18.7]}
11... Ne7 {[%clk 0:02:37.6]} 12. Be3 {[%clk 0:01:59.5]} 12... a5 {[%clk
0:02:36.5]} 13. Rd1 {[%clk 0:01:51.4]} 13... Qc7 {[%clk 0:02:36]} 14. Bc5 {[%clk
0:01:45.7]} 14... Nd5 {[%clk 0:02:19.2]} 15. a4 {[%clk 0:01:33]} 15... Bxc5
{[%clk 0:02:17.8]} 16. Qg4 {[%clk 0:01:04.8]} 16... Qxe5+ {[%clk 0:02:15]} 17.
Kf1 {[%clk 0:01:04.1]} 17... Qf4 {[%clk 0:01:48.2]} 18. Qe2 {[%clk 0:00:53.3]}
18... Ne3+ {[%clk 0:01:44.4]} 19. Ke1 {[%clk 0:00:35.8]} 19... Nxg2+ {[%clk
0:01:40.8]} 20. Kf1 {[%clk 0:00:35]} 20... Ne3+ {[%clk 0:01:41.7]} 21. Ke1
{[%clk 0:00:35]} 21... Nxc2+ {[%clk 0:01:34.1]} 22. Kf1 {[%clk 0:00:23.9]} 22...
Ne3+ {[%clk 0:01:34.3]} 23. Ke1 {[%clk 0:00:23.5]} 23... Bb4+ {[%clk 0:01:30.5]}
24. Rd2 {[%clk 0:00:20.7]} 24... Nxc4 {[%clk 0:01:29.9]} 25. Nh5 {[%clk
0:00:16.7]} 25... Bxd2+ {[%clk 0:01:28.1]} 26. Kf1 {[%clk 0:00:16.9]} 26... Qd4
{[%clk 0:01:07.9]} 27. Rh3 {[%clk 0:00:17]} 27... O-O-O {[%clk 0:01:05.3]} 28.
Rb3 {[%clk 0:00:13.5]} 28... Bd3 {[%clk 0:01:05]} 29. Kg2 {[%clk 0:00:12.5]}
29... Bxe2 {[%clk 0:01:05]} 30. Ng3 {[%clk 0:00:13.4]} 30... Qd5+ {[%clk
0:01:04.8]} 31. Kh2 {[%clk 0:00:13.1]} 31... Bf4 {[%clk 0:01:01.3]} 0-1

[Event "Early-Titled-Tuesday-Blitz-February-06-2024"]
[Site "Chess.com"]
[Date "2024.02.06"]
[Round "2"]
[White "eCztery"]
[Black "TV27"]
[Result "0-1"]
[WhiteElo "2417"]
[BlackElo "2146"]
[TimeControl "180+1"]
[EndTime "8:16:26 PST"]
[Termination "TV27 won by checkmate"]

1. c4 {[%clk 0:02:58.1]} 1... f5 {[%clk 0:02:59]} 2. e4 {[%clk 0:02:52.8]} 2...
fxe4 {[%clk 0:02:55.4]} 3. d3 {[%clk 0:02:52.1]} 3... Nc6 {[%clk 0:02:51.6]} 4.
dxe4 {[%clk 0:02:50.4]} 4... e5 {[%clk 0:02:51.1]} 5. Nf3 {[%clk 0:02:41.9]}
5... Nf6 {[%clk 0:02:50.1]} 6. Nc3 {[%clk 0:02:40]} 6... Bc5 {[%clk 0:02:45.9]}
7. Bg5 {[%clk 0:02:33.2]} 7... d6 {[%clk 0:02:30.4]} 8. Be2 {[%clk 0:02:13.7]}
8... O-O {[%clk 0:02:22.4]} 9. O-O {[%clk 0:02:01.6]} 9... h6 {[%clk 0:02:22.1]}
10. Bh4 {[%clk 0:02:01.5]} 10... g5 {[%clk 0:02:22]} 11. Nxg5 {[%clk 0:01:55.9]}
11... hxg5 {[%clk 0:02:21.5]} 12. Bxg5 {[%clk 0:01:56.8]} 12... Qd7 {[%clk
0:02:07.8]} 13. Bxf6 {[%clk 0:01:46.2]} 13... Rxf6 {[%clk 0:02:07]} 14. Nd5
{[%clk 0:01:47.1]} 14... Rh6 {[%clk 0:01:55.8]} 15. h3 {[%clk 0:01:45.4]} 15...
Qg7 {[%clk 0:01:49.2]} 16. Kh2 {[%clk 0:01:22.5]} 16... Nd4 {[%clk 0:01:47.7]}
17. Bh5 {[%clk 0:01:07]} 17... Qg5 {[%clk 0:01:31.8]} 18. f4 {[%clk 0:00:58.1]}
18... exf4 {[%clk 0:01:09.2]} 19. b4 {[%clk 0:00:57.2]} 19... f3 {[%clk
0:01:00]} 20. Bxf3 {[%clk 0:00:45.9]} 20... Qe5+ {[%clk 0:00:58.8]} 21. Kh1
{[%clk 0:00:41.1]} 21... Bxh3 {[%clk 0:00:57.7]} 22. bxc5 {[%clk 0:00:29.9]}
22... Bxg2+ {[%clk 0:00:53]} 23. Kg1 {[%clk 0:00:30.8]} 23... Qh2+ {[%clk
0:00:49.6]} 24. Kf2 {[%clk 0:00:31.4]} 24... Bxf3+ {[%clk 0:00:49.6]} 25. Ke3
{[%clk 0:00:31.7]} 25... Bxd1 {[%clk 0:00:43.9]} 26. Raxd1 {[%clk 0:00:31.4]}
26... Rh3+ {[%clk 0:00:37.1]} 27. Kxd4 {[%clk 0:00:31.5]} 27... Qb2+ {[%clk
0:00:36.5]} 28. Nc3 {[%clk 0:00:30]} 28... Qxc3+ {[%clk 0:00:36.4]} 29. Kd5
{[%clk 0:00:30.5]} 29... Qe5# {[%clk 0:00:36]} 0-1

[Event "Early-Titled-Tuesday-Blitz-February-06-2024"]
[Site "Chess.com"]
[Date "2024.02.06"]
[Round "2"]
[White "jcibarra"]
[Black "PedroGil25"]
[Result "1-0"]
[WhiteElo "2869"]
[BlackElo "2392"]
[TimeControl "180+1"]
[EndTime "8:16:27 PST"]
[Termination "jcibarra won by resignation"]

1. e4 {[%clk 0:02:48.6]} 1... c5 {[%clk 0:02:59.5]} 2. Nf3 {[%clk 0:02:48.3]}
2... e6 {[%clk 0:02:59]} 3. d4 {[%clk 0:02:48.4]} 3... cxd4 {[%clk 0:02:59.9]}
4. Nxd4 {[%clk 0:02:48.9]} 4... a6 {[%clk 0:03:00.6]} 5. c4 {[%clk 0:02:48.8]}
5... Qc7 {[%clk 0:02:59.8]} 6. a3 {[%clk 0:02:48.8]} 6... Nf6 {[%clk 0:03:00]}
7. Nc3 {[%clk 0:02:49.5]} 7... Be7 {[%clk 0:03:00.1]} 8. Be3 {[%clk 0:02:50.2]}
8... O-O {[%clk 0:02:59.9]} 9. Be2 {[%clk 0:02:51]} 9... b6 {[%clk 0:02:58.9]}
10. O-O {[%clk 0:02:51.2]} 10... Bb7 {[%clk 0:02:59.2]} 11. f3 {[%clk 0:02:52]}
11... d6 {[%clk 0:02:59.4]} 12. Rc1 {[%clk 0:02:52.5]} 12... Nbd7 {[%clk
0:02:59.3]} 13. b4 {[%clk 0:02:53.1]} 13... Rad8 {[%clk 0:02:59.2]} 14. Qd2
{[%clk 0:02:53.7]} 14... Qb8 {[%clk 0:02:59]} 15. Rc2 {[%clk 0:02:54]} 15...
Rfe8 {[%clk 0:02:55.8]} 16. Rb1 {[%clk 0:02:53]} 16... d5 {[%clk 0:02:31.1]} 17.
exd5 {[%clk 0:02:49.7]} 17... exd5 {[%clk 0:02:31.3]} 18. Nf5 {[%clk 0:02:41.3]}
18... dxc4 {[%clk 0:02:08.2]} 19. Bf4 {[%clk 0:02:34.8]} 19... Ne5 {[%clk
0:01:42.9]} 20. Qe3 {[%clk 0:02:34.1]} 20... Bd6 {[%clk 0:01:38.3]} 21. Qxb6
{[%clk 0:02:11.6]} 21... Bc7 {[%clk 0:01:24.5]} 22. Qf2 {[%clk 0:01:48.3]} 22...
Nd3 {[%clk 0:01:13.7]} 23. Bxc7 {[%clk 0:01:22.7]} 23... Qxc7 {[%clk 0:01:14.6]}
24. Qg3 {[%clk 0:01:23]} 24... Qb6+ {[%clk 0:01:10.8]} 25. Kf1 {[%clk
0:01:22.7]} 25... g6 {[%clk 0:01:08.5]} 26. Rd1 {[%clk 0:00:43.5]} 26... Nh5
{[%clk 0:01:06.2]} 27. Qh4 {[%clk 0:00:39.5]} 27... gxf5 {[%clk 0:01:03.1]} 28.
Na4 {[%clk 0:00:33.8]} 28... Qg6 {[%clk 0:00:56.6]} 29. Rxc4 {[%clk 0:00:33.4]}
29... Ndf4 {[%clk 0:00:53.8]} 30. Rxf4 {[%clk 0:00:32.3]} 30... Nxf4 {[%clk
0:00:54.7]} 31. Qxf4 {[%clk 0:00:32.6]} 31... Rxe2 {[%clk 0:00:52.2]} 32. Rxd8+
{[%clk 0:00:31.9]} 32... Kg7 {[%clk 0:00:49.6]} 33. Qd4+ {[%clk 0:00:27.8]}
33... Kh6 {[%clk 0:00:48.7]} 1-0

[Event "Early-Titled-Tuesday-Blitz-February-06-2024"]
[Site "Chess.com"]
[Date "2024.02.06"]
[Round "2"]
[White "yobdc"]
[Black "Gravity_Chess"]
[Result "0-1"]
[WhiteElo "2583"]
[BlackElo "2852"]
[TimeControl "180+1"]
[EndTime "8:16:29 PST"]
[Termination "Gravity_Chess won by resignation"]

1. c4 {[%clk 0:03:00.9]} 1... g6 {[%clk 0:02:59.9]} 2. d4 {[%clk 0:02:59.2]}
2... Bg7 {[%clk 0:03:00.8]} 3. e4 {[%clk 0:02:55.9]} 3... d6 {[%clk 0:03:01.5]}
4. Nc3 {[%clk 0:02:54.9]} 4... c5 {[%clk 0:02:59.6]} 5. d5 {[%clk 0:02:48.9]}
5... a6 {[%clk 0:02:59.4]} 6. a4 {[%clk 0:02:46]} 6... Nf6 {[%clk 0:02:59.8]} 7.
Nf3 {[%clk 0:02:39.1]} 7... O-O {[%clk 0:03:00.7]} 8. Be2 {[%clk 0:02:39]} 8...
Bg4 {[%clk 0:03:00.8]} 9. Be3 {[%clk 0:02:31]} 9... Bxf3 {[%clk 0:03:01]} 10.
Bxf3 {[%clk 0:02:31.2]} 10... Nbd7 {[%clk 0:03:01.9]} 11. Be2 {[%clk 0:02:31.1]}
11... h5 {[%clk 0:02:46]} 12. O-O {[%clk 0:02:29.2]} 12... Ne5 {[%clk
0:02:46.3]} 13. h3 {[%clk 0:02:26.8]} 13... Ned7 {[%clk 0:02:44.7]} 14. f4
{[%clk 0:02:23.8]} 14... Nh7 {[%clk 0:02:45]} 15. Qd2 {[%clk 0:02:11.8]} 15...
Kh8 {[%clk 0:02:45]} 16. g4 {[%clk 0:02:05.8]} 16... hxg4 {[%clk 0:02:44.4]} 17.
hxg4 {[%clk 0:02:06.7]} 17... g5 {[%clk 0:02:45]} 18. fxg5 {[%clk 0:01:35.5]}
18... Ne5 {[%clk 0:02:45.4]} 19. Kg2 {[%clk 0:01:35.5]} 19... Qd7 {[%clk
0:02:46]} 20. Rh1 {[%clk 0:01:33]} 20... Kg8 {[%clk 0:02:10]} 21. Rh4 {[%clk
0:01:27.5]} 21... Ng6 {[%clk 0:02:09.3]} 22. Rh5 {[%clk 0:01:26.8]} 22... Rfe8
{[%clk 0:02:04.9]} 23. Rah1 {[%clk 0:01:26.2]} 23... Nhf8 {[%clk 0:02:05.5]} 24.
e5 {[%clk 0:01:16.4]} 24... e6 {[%clk 0:01:55.8]} 25. dxe6 {[%clk 0:00:47.9]}
25... Rxe6 {[%clk 0:01:56.7]} 26. Nd5 {[%clk 0:00:28.9]} 26... Rxe5 {[%clk
0:01:56.8]} 27. Bf3 {[%clk 0:00:29.3]} 27... Rae8 {[%clk 0:01:55.7]} 28. Bf4
{[%clk 0:00:29.3]} 28... Re4 {[%clk 0:01:50]} 29. Kg3 {[%clk 0:00:28]} 29... Rd4
{[%clk 0:01:49.5]} 30. Qh2 {[%clk 0:00:24.9]} 30... Rxf4 {[%clk 0:01:33.9]} 31.
Nf6+ {[%clk 0:00:20.1]} 31... Rxf6 {[%clk 0:01:32.9]} 32. gxf6 {[%clk
0:00:20.4]} 32... Bxf6 {[%clk 0:01:31.2]} 33. Rf5 {[%clk 0:00:20.4]} 33... Be5+
{[%clk 0:01:29.5]} 34. Rxe5 {[%clk 0:00:20.3]} 34... Rxe5 {[%clk 0:01:30.4]} 35.
Bd5 {[%clk 0:00:20]} 35... Rxd5 {[%clk 0:01:27.2]} 36. cxd5 {[%clk 0:00:20]}
36... Qe7 {[%clk 0:01:27]} 37. Qf2 {[%clk 0:00:19.1]} 37... Qe5+ {[%clk
0:01:27]} 38. Kg2 {[%clk 0:00:18.1]} 38... Qxd5+ {[%clk 0:01:27.5]} 39. Qf3
{[%clk 0:00:18.7]} 39... Qd2+ {[%clk 0:01:17.1]} 40. Kg3 {[%clk 0:00:18.9]}
40... Qxb2 {[%clk 0:01:11.8]} 41. Rf1 {[%clk 0:00:19.2]} 41... Qe5+ {[%clk
0:01:11.9]} 42. Kg2 {[%clk 0:00:19]} 42... Nh4+ {[%clk 0:01:12.3]} 43. Kh3
{[%clk 0:00:18.4]} 43... Nxf3 {[%clk 0:01:13.2]} 44. Rxf3 {[%clk 0:00:19.1]}
44... c4 {[%clk 0:01:12.9]} 0-1

[Event "Early-Titled-Tuesday-Blitz-February-06-2024"]
[Site "Chess.com"]
[Date "2024.02.06"]
[Round "2"]
[White "xberli"]
[Black "Shivananda1964"]
[Result "1-0"]
[WhiteElo "2537"]
[BlackElo "2348"]
[TimeControl "180+1"]
[EndTime "8:16:30 PST"]
[Termination "xberli won on time"]

1. d4 {[%clk 0:03:00.9]} 1... Nf6 {[%clk 0:02:59.4]} 2. c4 {[%clk 0:02:52.8]}
2... Nc6 {[%clk 0:02:58.4]} 3. d5 {[%clk 0:02:51.3]} 3... Ne5 {[%clk 0:02:58]}
4. b3 {[%clk 0:02:51.6]} 4... e6 {[%clk 0:02:53.2]} 5. dxe6 {[%clk 0:02:45.2]}
5... Bb4+ {[%clk 0:02:36.8]} 6. Bd2 {[%clk 0:02:44.1]} 6... Qe7 {[%clk
0:02:33.1]} 7. Bxb4 {[%clk 0:02:31.1]} 7... Qxb4+ {[%clk 0:02:30]} 8. Qd2 {[%clk
0:02:31.4]} 8... Qxd2+ {[%clk 0:02:28.7]} 9. Nxd2 {[%clk 0:02:32.3]} 9... fxe6
{[%clk 0:02:19]} 10. g3 {[%clk 0:02:27.5]} 10... O-O {[%clk 0:02:18.4]} 11. Bg2
{[%clk 0:02:27.8]} 11... d5 {[%clk 0:02:15]} 12. cxd5 {[%clk 0:02:28.2]} 12...
exd5 {[%clk 0:02:14.9]} 13. Ngf3 {[%clk 0:02:29.1]} 13... Nxf3+ {[%clk
0:02:10.3]} 14. Nxf3 {[%clk 0:02:28.4]} 14... Re8 {[%clk 0:02:07.3]} 15. e3
{[%clk 0:02:27.5]} 15... a5 {[%clk 0:01:50.1]} 16. O-O {[%clk 0:02:23.6]} 16...
a4 {[%clk 0:01:50.1]} 17. b4 {[%clk 0:02:22.7]} 17... a3 {[%clk 0:01:49.6]} 18.
Rac1 {[%clk 0:02:20]} 18... c6 {[%clk 0:01:47.3]} 19. Nd4 {[%clk 0:02:19.5]}
19... Bd7 {[%clk 0:01:29.6]} 20. Rfd1 {[%clk 0:02:11.4]} 20... Ra4 {[%clk
0:01:19.7]} 21. b5 {[%clk 0:02:08]} 21... cxb5 {[%clk 0:01:17.6]} 22. Rc7 {[%clk
0:02:07.8]} 22... Rb4 {[%clk 0:00:29.6]} 23. Rxb7 {[%clk 0:02:03.1]} 23... Rb2
{[%clk 0:00:29.2]} 24. Rc1 {[%clk 0:01:47.3]} 24... Rxa2 {[%clk 0:00:13.1]} 25.
Rxd7 {[%clk 0:01:47]} 25... Rb2 {[%clk 0:00:09]} 26. Ra7 {[%clk 0:01:40.9]}
26... b4 {[%clk 0:00:08.5]} 27. Ra1 {[%clk 0:01:28.3]} 27... Ne4 {[%clk
0:00:07.8]} 28. Bxe4 {[%clk 0:01:27.6]} 28... dxe4 {[%clk 0:00:07.2]} 29. Nf5
{[%clk 0:01:19.9]} 29... g6 {[%clk 0:00:04.3]} 30. Nh6+ {[%clk 0:01:13.9]} 30...
Kh8 {[%clk 0:00:04.6]} 31. Ng4 {[%clk 0:01:13.7]} 31... a2 {[%clk 0:00:02.4]}
32. Nf6 {[%clk 0:01:10.2]} 32... Rb1+ {[%clk 0:00:01.7]} 33. Kg2 {[%clk
0:01:10.4]} 1-0